fUST/lending_fUST_20240129
["ID","MTS","AMOUNT","RATE_DAILY","PERIOD"]
[312949826,1706508638692,-5307.32,0.0002199,3]
[312949827,1706508638701,-4422.77,0.0002199,3]
[312949828,1706508638711,-112523.55727344,0.00022,2]
[312949835,1706508643597,-518.61,0.0002199,3]
[312949836,1706508643609,-1510.26,0.0002199,3]
[312949837,1706508643620,-861.211647,0.0002199,3]
[312949838,1706508643634,-795.558353,0.0002199,3]
[312949839,1706508643647,-540.14140229,0.00022,2]
[312949856,1706508646632,-282.82346354,0.00022,2]
[312949909,1706509831744,-155.00775039,0.00021917,2]
[312949910,1706509831754,-166.666666,0.00021918,2]
[312949911,1706509831764,-358.8993836,0.00022,2]
[312949967,1706509837957,-6417.24,0.0002199,3]
[312949968,1706509837968,-691.70370751,0.00022,2]
[312949988,1706509840911,-12297.877657,0.00022,2]
[312949989,1706509840922,-3421.81370562,0.00022,2]
[312949990,1706509840933,-2287.26626204,0.00022,2]
[312949991,1706509840944,-2953.30286897,0.00022,2]
[312949992,1706509840956,-8890.70797669,0.00022,2]
[312950012,1706509843873,-1979.09136983,0.0002199,3]
[312950018,1706509845835,-3368.60863017,0.0002199,3]
[312950019,1706509845845,-5791.62579277,0.00022,2]
[312950293,1706511041116,-155.00775039,0.00021454,2]
[312950294,1706511041126,-3926.44482962,0.00021455,2]
[312950295,1706511041178,-11924.07756337,0.00021455,2]
[312950327,1706511046241,-867.82603526,0.00021455,2]
[312950328,1706511046253,-350.98489009,0.00021455,2]
[312950351,1706512232130,-745.07915358,0.00020836,2]
[312950352,1706512232140,-155.00775039,0.00020839,2]
[312950353,1706512232149,-657.54961201,0.0002084,2]
[312950545,1706512791612,1000.0,0.00025,25]
[312950613,1706513438685,-156.46092533,0.0001931,2]
[312950615,1706513438694,-620.89929465,0.00020142,2]
[312950617,1706513438703,-183.208202,0.00020143,2]
[312950619,1706513438714,-738.0183545,0.00020311,2]
[312950621,1706513438723,-307.01352092,0.00021454,2]
[312950623,1706513438732,-822.40033311,0.00021455,2]
[312950672,1706513441390,-1192.87781232,0.00021455,2]
[312950738,1706513894833,2465.83909906,0.00029,30]
[312950771,1706514632491,-486.2,0.00019913,2]
[312950772,1706514632505,-59.70777126,0.00019914,2]
[312950793,1706514639543,-463.7596858,0.00019914,2]
[312950794,1706514639553,-246.112991,0.00019915,2]
[312950795,1706514639562,-620.89929465,0.00021006,2]
[312950796,1706514639571,-224.53556397,0.00021007,2]
[312950797,1706514639580,-8456.83914675,0.00021009,2]
[312950798,1706514639659,-1584.12792453,0.00021009,2]
[312950848,1706514643526,-1364.65472337,0.00021009,2]
[312950866,1706514646644,-8103.69961654,0.00021009,2]
[312950867,1706514646654,-152.82367298,0.00021355,2]
[312950868,1706514646663,-30915.38853623,0.00021455,2]
[312950869,1706514646672,-4534.29,0.0002186,3]
[312950870,1706514646682,-7079.54,0.0002186,3]
[312950871,1706514646691,-151.0,0.0002186,2]
[312950872,1706514646700,-151.0,0.0002186,2]
[312950874,1706514646709,-385.59773,0.0002187,2]
[312950876,1706514646719,-385.59773,0.0002187,2]
[312950878,1706514646728,-385.59773,0.0002187,2]
[312950880,1706514646737,-385.59773,0.0002187,2]
[312950881,1706514646746,-385.59773,0.0002187,2]
[312950882,1706514646755,-385.59773,0.0002187,2]
[312950883,1706514646765,-151.0,0.0002187,2]
[312950884,1706514646773,-151.0,0.0002187,2]
[312950885,1706514646783,-151.0,0.0002187,2]
[312950886,1706514646792,-151.0,0.0002187,2]
[312950887,1706514646801,-151.0,0.0002187,2]
[312950888,1706514646810,-7238.600282,0.0002187,2]
[312950889,1706514646820,-7238.600282,0.0002187,2]
[312950890,1706514646829,-7238.600282,0.0002187,2]
[312950891,1706514646838,-7238.600282,0.0002187,2]
[312950892,1706514646847,-7238.600282,0.0002187,2]
[312950893,1706514646856,-7238.600282,0.0002187,2]
[312950894,1706514646866,-208.97833,0.0002187,2]
[312950895,1706514646875,-24110.20825782,0.0002187,2]
[312950896,1706514646885,-166.666666,0.00021918,2]
[312950897,1706514646894,-360.0,0.0002195,2]
[312950898,1706514646904,-360.0,0.0002195,2]
[312950899,1706514646913,-360.0,0.0002195,2]
[312950900,1706514646923,-360.0,0.0002195,2]
[312950901,1706514646932,-1000.002427,0.0002195,2]
[312950902,1706514646942,-1000.002427,0.0002195,2]
[312950903,1706514646951,-1000.002427,0.0002195,2]
[312950904,1706514646961,-1000.002427,0.0002195,2]
[312950905,1706514646971,-385.59773,0.0002195,2]
[312950906,1706514646981,-385.59773,0.0002195,2]
[312950907,1706514646990,-385.59773,0.0002195,2]
[312950908,1706514647000,-385.59773,0.0002195,2]
[312950909,1706514647010,-385.59773,0.0002195,2]
[312950910,1706514647019,-385.59773,0.0002195,2]
[312950911,1706514647029,-385.59773,0.0002195,2]
[312950912,1706514647038,-385.59773,0.0002195,2]
[312950913,1706514647047,-385.59773,0.0002195,2]
[312950914,1706514647057,-385.59773,0.0002195,2]
[312950915,1706514647066,-385.59773,0.0002195,2]
[312950916,1706514647075,-385.59773,0.0002195,2]
[312950917,1706514647085,-385.59773,0.0002195,2]
[312950918,1706514647094,-385.597738,0.0002195,2]
[312950919,1706514647104,-232.912714,0.0002195,2]
[312950920,1706514647113,-7238.600282,0.0002195,2]
[312950921,1706514647122,-7238.600282,0.0002195,2]
[312950922,1706514647131,-7238.600282,0.0002195,2]
[312950923,1706514647139,-7238.600282,0.0002195,2]
[312950924,1706514647149,-7238.600282,0.0002195,2]
[312950925,1706514647158,-7238.600282,0.0002195,2]
[312950926,1706514647167,-7238.600282,0.0002195,2]
[312950927,1706514647176,-7238.600282,0.0002195,2]
[312950928,1706514647185,-7238.600282,0.0002195,2]
[312950929,1706514647196,-7238.600282,0.0002195,2]
[312950930,1706514647204,-7238.600282,0.0002195,2]
[312950931,1706514647213,-7238.600282,0.0002195,2]
[312950932,1706514647223,-7238.600282,0.0002195,2]
[312950933,1706514647232,-7238.600291,0.0002195,2]
[312950934,1706514647241,-151.0,0.0002196,2]
[312950935,1706514647250,-151.0,0.0002196,2]
[312950936,1706514647260,-151.0,0.0002196,2]
[312950937,1706514647269,-151.0,0.0002196,2]
[312950938,1706514647278,-360.0,0.0002196,2]
[312950939,1706514647287,-360.0,0.0002196,2]
[312950940,1706514647296,-360.0,0.0002196,2]
[312950941,1706514647305,-360.0,0.0002196,2]
[312950942,1706514647314,-360.0,0.0002196,2]
[312950943,1706514647324,-360.0,0.0002196,2]
[312950944,1706514647333,-360.0,0.0002196,2]
[312950945,1706514647343,-360.0,0.0002196,2]
[312950946,1706514647352,-360.0,0.0002196,2]
[312950947,1706514647361,-360.0,0.0002196,2]
[312950948,1706514647370,-360.0,0.0002196,2]
[312950949,1706514647379,-360.0,0.0002196,2]
[312950950,1706514647389,-1000.002427,0.0002196,2]
[312950951,1706514647398,-1000.002427,0.0002196,2]
[312950952,1706514647407,-1000.002427,0.0002196,2]
[312950953,1706514647416,-1000.002427,0.0002196,2]
[312950954,1706514647425,-1000.002427,0.0002196,2]
[312950955,1706514647434,-1000.002427,0.0002196,2]
[312950956,1706514647444,-1000.002427,0.0002196,2]
[312950957,1706514647453,-1000.002427,0.0002196,2]
[312950958,1706514647462,-1000.002427,0.0002196,2]
[312950959,1706514647471,-1000.002427,0.0002196,2]
[312950960,1706514647480,-1000.002427,0.0002196,2]
[312950961,1706514647489,-1000.002427,0.0002196,2]
[312950962,1706514647498,-151.0,0.0002197,2]
[312950963,1706514647508,-151.0,0.0002197,2]
[312950964,1706514647521,-151.0,0.0002197,2]
[312950965,1706514647530,-151.0,0.0002197,2]
[312950966,1706514647539,-163.596798,0.0002197,2]
[312950967,1706514647637,-360.0,0.0002197,2]
[312950968,1706514647647,-360.0,0.0002197,2]
[312950969,1706514647656,-360.0,0.0002197,2]
[312950970,1706514647665,-360.0,0.0002197,2]
[312950971,1706514647674,-1000.002427,0.0002197,2]
[312950972,1706514647683,-1000.002427,0.0002197,2]
[312950973,1706514647693,-1000.002427,0.0002197,2]
[312950974,1706514647702,-1000.002427,0.0002197,2]
[312950975,1706514647710,-151.0,0.0002198,2]
[312950976,1706514647720,-151.0,0.0002198,2]
[312950977,1706514647729,-151.0,0.0002198,2]
[312950978,1706514647738,-151.0,0.0002198,2]
[312950979,1706514647747,-181.781925,0.00021998,2]
[312950980,1706514647757,-78870.94322248,0.00022,2]
[312950981,1706514647766,-2036.85139165,0.00022,2]
[312950982,1706514647775,-3973.56469819,0.00022,2]
[312950983,1706514647784,-426.52191671,0.00022,2]
[312950984,1706514647793,-211.1964663,0.00022,2]
[312950985,1706514647802,-153.0,0.000221,2]
[312950986,1706514647811,-153.9751229,0.000221,2]
[312950987,1706514647820,-166.666666,0.00022431,2]
[312950988,1706514647830,-153.90595391,0.000225,2]
[312950989,1706514647840,-2199.12589198,0.0002269,2]
[312950990,1706514647849,-5000.0,0.0002269,2]
[312950991,1706514647858,-5000.0,0.0002269,2]
[312950992,1706514647869,-12518.84132229,0.0002269,2]
[312950993,1706514647878,-5000.0,0.0002269,2]
[312950994,1706514647888,-5000.0,0.0002269,2]
[312950995,1706514647897,-5000.0,0.0002269,2]
[312950996,1706514647906,-5000.0,0.0002269,2]
[312950997,1706514647916,-7547.62634574,0.0002269,2]
[312950998,1706514647926,-5000.0,0.0002269,2]
[312950999,1706514647936,-5000.0,0.0002269,2]
[312951000,1706514647946,-5000.0,0.0002269,2]
[312951001,1706514647956,-5000.0,0.0002269,2]
[312951002,1706514647965,-6971.4525435,0.0002269,2]
[312951003,1706514647974,-3621.1456085,0.0002269,2]
[312951004,1706514647987,-709.46106144,0.0002269,2]
[312951153,1706515838258,-523.46745706,0.00021886,2]
[312951155,1706515838268,-155.00155002,0.00021887,2]
[312951157,1706515838277,-323.48853251,0.00021888,2]
[312951158,1706515838287,-133.63627587,0.00021918,2]
[312951159,1706515838374,-33.03039013,0.00021918,2]
[312951160,1706515838384,-1059.35555624,0.00022,2]
[312951161,1706515838395,-1137.91319919,0.00022,2]
[312951190,1706515843499,-277.33699609,0.00022,2]
[312951192,1706515843508,-2036.85139165,0.00022,2]
[312951194,1706515843518,-426.52191671,0.00022,2]
[312951197,1706515843528,-166.666666,0.00022431,2]
[312951200,1706515843537,-794.67076424,0.00022658,2]
[312951202,1706515843546,-753.80133482,0.00022658,2]
[312951203,1706515843555,-451.04448623,0.00022658,2]
[312951204,1706515843565,-669.39333006,0.0002269,2]
[312951205,1706515843574,-3683.2931142,0.0002269,2]
[312951206,1706515843585,-626.72941278,0.0002269,2]
[312951207,1706515843594,-2039.75545879,0.0002269,2]
[312951239,1706515843938,-11.76810099,0.0002269,2]
[312951241,1706515843948,-621.46488849,0.0002269,2]
[312951243,1706515843959,-1828.39935508,0.0002269,2]
[312951245,1706515843968,-155.00155002,0.0002269,2]
[312951247,1706515843977,-300.0,0.0002269,2]
[312951249,1706515843986,-155.00155002,0.0002269,2]
[312951250,1706515843996,-323.0,0.000227,10]
[312951251,1706515844006,-2010.15530952,0.000227,2]
[312951253,1706515844018,-921.79253314,0.000227,2]
[312951557,1706517043630,-155.00155002,0.00021875,2]
[312951558,1706517043640,-323.48853251,0.00021876,2]
[312951559,1706517043650,-27.80503627,0.00021877,2]
[312951564,1706517418215,3901.0,0.000222,7]
[312951660,1706518238142,-523.46745706,0.00019999,2]
[312951661,1706518238152,-380.0,0.0002,2]
[312951662,1706518238161,-323.48853251,0.00021376,2]
[312951663,1706518238170,-105.92852986,0.00021377,2]
[312951704,1706518243946,-703.61430404,0.00021377,2]
[312951705,1706518243956,-166.666666,0.00021918,2]
[312951706,1706518243965,-2036.85139165,0.00022,2]
[312951707,1706518243974,-426.52191671,0.00022199,2]
[312951708,1706518243984,-300.0,0.000222,2]
[312951709,1706518243993,-155.00310006,0.000222,2]
[312951710,1706518244002,-608.51199323,0.000222,2]
[312951861,1706519432370,-260.64203219,0.00021427,2]
[312951863,1706519432380,-178.79143169,0.00021427,2]
[312951921,1706519438349,-323.48853251,0.00021426,2]
[312951922,1706519438359,-344.67602537,0.00021427,2]
[312951923,1706519438369,-1640.38511733,0.00021441,2]
[312951924,1706519438383,-6117.59137976,0.00021441,2]
[312951925,1706519438395,-2165.30414881,0.00021441,2]
[312951926,1706519438404,-221.80329626,0.00021665,2]
[312951927,1706519438414,-166.666666,0.00021918,2]
[312951928,1706519438423,-281.89965193,0.0002197,2]
[312951929,1706519438433,-1762.47733428,0.00022,2]
[312952011,1706519446473,-274.37405737,0.00022,2]
[312952012,1706519446483,-426.52191671,0.00022,2]
[312952013,1706519446492,-1219.88736185,0.000222,2]
[312952014,1706519446502,-300.0,0.000222,2]
[312952015,1706519446511,-154.74666407,0.000222,2]
[312952031,1706520251499,-206.38729192,0.000295,30]
[312952032,1706520251529,-1000.0,0.0003,30]
[312952033,1706520251554,-19046.29228631,0.0003,30]
[312952034,1706520251579,-166.71352398,0.000305,120]
[312952035,1706520251605,-1000.0,0.00031,31]
[312952036,1706520251627,-10500.0,0.00031,30]
[312952037,1706520251651,-4930.96870342,0.00032,30]
[312952038,1706520251673,-1000.0,0.00032,32]
[312952039,1706520251699,-1000.0,0.00033,33]
[312952040,1706520251721,-11503.0,0.00033,30]
[312952041,1706520251744,-7005.0,0.00033,30]
[312952042,1706520251859,-1000.0,0.00034,34]
[312952043,1706520251884,-4270.50619689,0.00034898,120]
[312952044,1706520251908,-1000.0,0.00035,35]
[312952045,1706520251933,-201.939595,0.00035616,120]
[312952046,1706520251956,-2797.208538,0.00035616,120]
[312952047,1706520251979,-910249.15701981,0.000359,30]
[312952048,1706520252004,-1000.0,0.00036,36]
[312952049,1706520252031,-1000.0,0.00037,37]
[312952050,1706520252055,-21122.82684467,0.0003795,30]
[312952051,1706520265212,-201.939595,0.00035616,61]
[312952052,1706520265238,-104657.67496182,0.0003795,30]
[312952053,1706520265267,-125425.63098773,0.0003795,30]
[312952054,1706520265291,-1570.87616692,0.00038,120]
[312952055,1706520265315,-1000.0,0.00038,38]
[312952056,1706520265340,-23113.52057827,0.00038,120]
[312952057,1706520265366,-1208.10872979,0.0003807,30]
[312952058,1706520265390,-8000.0,0.000389,38]
[312952059,1706520265414,-1000.0,0.00039,39]
[312952060,1706520265437,-30000.0,0.000399,120]
[312952061,1706520265460,-7000.0,0.000399,120]
[312952062,1706520265483,-390200.0,0.0003999,60]
[312952063,1706520265506,-199.33012771,0.00039999,31]
[312952064,1706520265530,-221.90235303,0.00039999,31]
[312952065,1706520265553,-323.87396469,0.00039999,31]
[312952066,1706520265578,-469.21000559,0.00039999,31]
[312952067,1706520265601,-500.0,0.00039999,31]
[312952068,1706520265624,-500.0,0.00039999,31]
[312952069,1706520265647,-500.0,0.00039999,31]
[312952070,1706520265670,-159.53818141,0.00039999,31]
[312952071,1706520265783,-328.36725561,0.00039999,31]
[312952072,1706520265808,-500.0,0.00039999,31]
[312952073,1706520265830,-524.28998743,0.00039999,31]
[312952074,1706520265854,-500.0,0.00039999,31]
[312952075,1706520265878,-500.0,0.00039999,31]
[312952076,1706520265900,-500.0,0.00039999,31]
[312952077,1706520265924,-236.61130858,0.00039999,31]
[312952078,1706520265947,-500.0,0.00039999,31]
[312952079,1706520265970,-500.0,0.00039999,31]
[312952080,1706520265993,-500.0,0.00039999,31]
[312952081,1706520266017,-500.0,0.00039999,31]
[312952082,1706520266043,-500.0,0.00039999,31]
[312952083,1706520266067,-500.0,0.00039999,31]
[312952084,1706520266090,-500.0,0.00039999,31]
[312952085,1706520266113,-561.04021249,0.00039999,31]
[312952086,1706520266143,-500.0,0.00039999,31]
[312952087,1706520266167,-907.91327133,0.00039999,31]
[312952088,1706520266190,-300.0,0.00039999,31]
[312952089,1706520266213,-907.91327133,0.00039999,31]
[312952090,1706520266237,-907.91327133,0.00039999,31]
[312952091,1706520266263,-907.91327133,0.00039999,31]
[312952092,1706520266291,-1867.55900806,0.0004,120]
[312952093,1706520266314,-171.8836213,0.0004,120]
[312952094,1706520266340,-1821.59394147,0.0004,30]
[312952095,1706520266364,-1000.0,0.0004,40]
[312952096,1706520266389,-5576.42116673,0.0004,120]
[312952097,1706520266412,-13981.87631614,0.0004,30]
[312952098,1706520266435,-999.84800366,0.0004,30]
[312952099,1706520266460,-8000.0,0.00040137,30]
[312952100,1706520266484,-1000.0,0.000402,30]
[312952101,1706520266510,-1000.0,0.000403,30]
[312952102,1706520266536,-1000.0,0.000403,30]
[312952103,1706520266561,-1000.0,0.000405,30]
[312952104,1706520266585,-15275.30197396,0.000407,120]
[312952105,1706520266609,-3000.0,0.00040822,35]
[312952106,1706520266633,-14097.0,0.00040822,45]
[312952107,1706520266656,-9000.0,0.00040822,30]
[312952108,1706520266680,-1000.0,0.00041,41]
[312952109,1706520266704,-11320.32345245,0.00041,90]
[312952110,1706520266726,-5654.25447363,0.00041,60]
[312952111,1706520266755,-457.0,0.00041,90]
[312952112,1706520266779,-231.58148749,0.00041095,31]
[312952113,1706520266802,-500.0,0.00041095,31]
[312952114,1706520266825,-500.0,0.00041095,31]
[312952115,1706520266848,-396.63337098,0.00041095,31]
[312952116,1706520266870,-633.37710309,0.00041095,31]
[312952117,1706520266893,-1231.73,0.00041095,31]
[312952118,1706520266916,-504.65172515,0.00041095,31]
[312952119,1706520266939,-500.0,0.00041095,31]
[312952120,1706520266962,-522.18715234,0.00041095,31]
[312952121,1706520266985,-218.66430753,0.00041095,31]
[312952122,1706520267008,-501.58739504,0.00041095,31]
[312952123,1706520267032,-501.66560711,0.00041095,31]
[312952124,1706520267055,-349.43672347,0.00041095,31]
[312952125,1706520267079,-504.16646041,0.00041095,31]
[312952126,1706520267102,-500.0,0.00041095,31]
[312952127,1706520267126,-648.53293556,0.00041095,31]
[312952128,1706520267148,-500.0,0.00041095,31]
[312952129,1706520267172,-600.0,0.00041095,31]
[312952130,1706520267196,-503.71890736,0.00041095,31]
[312952131,1706520267218,-500.0,0.00041095,31]
[312952132,1706520267241,-624.10570892,0.00041095,31]
[312952133,1706520267267,-807.25,0.00041095,31]
[312952134,1706520267292,-500.0,0.00041095,31]
[312952135,1706520267316,-500.80638827,0.00041095,31]
[312952136,1706520267342,-500.0,0.00041095,31]
[312952137,1706520267365,-500.0,0.00041095,31]
[312952138,1706520267455,-500.0,0.00041095,31]
[312952139,1706520267494,-632.19549904,0.00041095,31]
[312952140,1706520267516,-506.26216168,0.00041095,31]
[312952141,1706520267540,-500.0,0.00041095,31]
[312952142,1706520267563,-500.0,0.00041095,31]
[312952143,1706520267586,-524.32730554,0.00041095,31]
[312952144,1706520267609,-526.9894538,0.00041095,31]
[312952145,1706520267632,-151.52496629,0.00041095,31]
[312952146,1706520267655,-156.63648789,0.00041095,31]
[312952147,1706520267677,-500.0,0.00041095,31]
[312952148,1706520267699,-503.36609152,0.00041095,31]
[312952149,1706520267722,-500.0,0.00041095,31]
[312952150,1706520267745,-1057.6,0.00041095,31]
[312952151,1706520267771,-500.0,0.00041095,31]
[312952152,1706520267797,-614.17458327,0.00041095,31]
[312952153,1706520267819,-1017.15,0.00041095,31]
[312952154,1706520267842,-275.51251384,0.00041095,31]
[312952155,1706520267865,-500.0,0.00041095,31]
[312952156,1706520267888,-337.69567719,0.00041095,31]
[312952157,1706520267910,-502.09031701,0.00041095,31]
[312952158,1706520267933,-508.13588963,0.00041095,31]
[312952159,1706520267956,-500.0,0.00041095,31]
[312952160,1706520267978,-500.0,0.00041095,31]
[312952161,1706520268000,-500.0,0.00041095,31]
[312952162,1706520268023,-606.42480417,0.00041095,31]
[312952163,1706520268047,-187.37536565,0.00041095,31]
[312952164,1706520268070,-500.0,0.00041095,31]
[312952165,1706520268093,-515.44296013,0.00041095,31]
[312952166,1706520268116,-500.0,0.00041095,31]
[312952167,1706520268138,-924.3,0.00041095,31]
[312952168,1706520268161,-1441.83,0.00041095,31]
[312952169,1706520268183,-500.0,0.00041095,31]
[312952170,1706520268205,-500.0,0.00041095,31]
[312952171,1706520268234,-500.0,0.00041095,31]
[312952172,1706520268272,-500.0,0.00041095,31]
[312952173,1706520268303,-492.83875918,0.00041095,31]
[312952174,1706520268335,-779.34,0.00041095,31]
[312952175,1706520268368,-520.18484568,0.00041095,31]
[312952176,1706520268397,-500.0,0.00041095,31]
[312952177,1706520268429,-500.0,0.00041095,31]
[312952178,1706520268461,-1635.04,0.00041095,31]
[312952179,1706520268492,-500.0,0.00041095,31]
[312952180,1706520268523,-500.0,0.00041095,31]
[312952181,1706520268555,-2318.15,0.00041095,31]
[312952182,1706520268587,-153.12946757,0.00041095,31]
[312952183,1706520268621,-501.39174919,0.00041095,31]
[312952184,1706520268647,-500.0,0.00041095,31]
[312952185,1706520268677,-500.0,0.00041095,31]
[312952186,1706520268707,-502.23559168,0.00041095,31]
[312952187,1706520268733,-500.0,0.00041095,31]
[312952188,1706520268761,-500.0,0.00041095,31]
[312952189,1706520268790,-502.13809654,0.00041095,31]
[312952190,1706520268818,-500.0,0.00041095,31]
[312952191,1706520268846,-441.71770391,0.00041095,31]
[312952192,1706520268874,-500.0,0.00041095,31]
[312952193,1706520268902,-500.0,0.00041095,31]
[312952194,1706520268929,-500.0,0.00041095,31]
[312952195,1706520268957,-476.76684687,0.00041095,31]
[312952196,1706520268986,-500.0,0.00041095,31]
[312952197,1706520269012,-501.52376898,0.00041095,31]
[312952198,1706520269042,-500.0,0.00041095,31]
[312952199,1706520269070,-206.65162078,0.00041095,31]
[312952200,1706520269099,-402.18219652,0.00041095,31]
[312952201,1706520269126,-813.27,0.00041095,31]
[312952202,1706520269154,-193.81865355,0.00041095,31]
[312952203,1706520269181,-514.87041357,0.00041095,31]
[312952204,1706520269333,-311.26992544,0.00041095,31]
[312952205,1706520269357,-500.0,0.00041095,31]
[312952206,1706520269380,-515.07129844,0.00041095,31]
[312952207,1706520269405,-502.55611032,0.00041095,31]
[312952208,1706520269428,-500.0,0.00041095,31]
[312952209,1706520269451,-500.0,0.00041095,31]
[312952210,1706520269475,-232.61125093,0.00041095,31]
[312952211,1706520269498,-500.0,0.00041095,31]
[312952212,1706520269520,-500.0,0.00041095,31]
[312952213,1706520269544,-500.0,0.00041095,31]
[312952214,1706520269571,-502.28672453,0.00041095,31]
[312952215,1706520269594,-500.0,0.00041095,31]
[312952216,1706520269617,-724.98,0.00041095,31]
[312952217,1706520269641,-500.0,0.00041095,31]
[312952218,1706520269670,-510.70590626,0.00041095,31]
[312952219,1706520269716,-500.0,0.00041095,31]
[312952220,1706520269761,-502.24955242,0.00041095,31]
[312952221,1706520269803,-468.19783381,0.00041095,31]
[312952222,1706520269826,-1574.41,0.00041095,31]
[312952223,1706520269848,-644.1818042,0.00041095,31]
[312952224,1706520269871,-338.96949758,0.00041095,31]
[312952225,1706520269895,-503.43802869,0.00041095,31]
[312952226,1706520269919,-500.0,0.00041095,31]
[312952227,1706520269941,-500.0,0.00041095,31]
[312952228,1706520269963,-905.22,0.00041095,31]
[312952229,1706520269986,-500.78969922,0.00041095,31]
[312952230,1706520270007,-500.0,0.00041095,31]
[312952231,1706520270030,-502.04846945,0.00041095,31]
[312952232,1706520270054,-500.0,0.00041095,31]
[312952233,1706520270076,-508.42674987,0.00041095,31]
[312952234,1706520270099,-500.0,0.00041095,31]
[312952235,1706520270122,-508.43564562,0.00041095,31]
[312952236,1706520270146,-500.0,0.00041095,31]
[312952237,1706520270169,-500.0,0.00041095,31]
[312952238,1706520270192,-500.0,0.00041095,31]
[312952239,1706520270219,-606.00781407,0.00041095,31]
[312952240,1706520270243,-201.26581371,0.00041095,31]
[312952241,1706520270284,-500.0,0.00041095,31]
[312952242,1706520270310,-500.0,0.00041095,31]
[312952243,1706520270335,-500.0,0.00041095,31]
[312952244,1706520270360,-500.0,0.00041095,31]
[312952245,1706520270386,-500.0,0.00041095,31]
[312952246,1706520270409,-500.0,0.00041095,31]
[312952247,1706520270434,-500.0,0.00041095,31]
[312952248,1706520270457,-500.0,0.00041095,31]
[312952249,1706520270482,-500.0,0.00041095,31]
[312952250,1706520270505,-500.0,0.00041095,31]
[312952251,1706520270530,-500.0,0.00041095,31]
[312952252,1706520270554,-500.0,0.00041095,31]
[312952253,1706520270578,-500.0,0.00041095,31]
[312952254,1706520270601,-500.0,0.00041095,31]
[312952255,1706520270624,-500.0,0.00041095,31]
[312952256,1706520270647,-500.0,0.00041095,31]
[312952257,1706520270670,-500.0,0.00041095,31]
[312952258,1706520270693,-500.0,0.00041095,31]
[312952259,1706520270716,-500.0,0.00041095,31]
[312952260,1706520270740,-500.0,0.00041095,31]
[312952261,1706520270764,-500.0,0.00041095,31]
[312952262,1706520270788,-500.0,0.00041095,31]
[312952263,1706520270811,-524.48191902,0.00041095,31]
[312952264,1706520270834,-749.73,0.00041095,31]
[312952265,1706520270856,-516.02691223,0.00041095,31]
[312952266,1706520270879,-500.0,0.00041095,31]
[312952267,1706520270901,-500.0,0.00041095,31]
[312952268,1706520270924,-500.0,0.00041095,31]
[312952269,1706520271048,-501.37148134,0.00041095,31]
[312952270,1706520271072,-421.0363806,0.00041095,31]
[312952271,1706520271094,-501.70979468,0.00041095,31]
[312952272,1706520271117,-502.78325632,0.00041095,31]
[312952273,1706520271149,-500.0,0.00041095,31]
[312952274,1706520271172,-501.34286442,0.00041095,31]
[312952275,1706520271194,-500.0,0.00041095,31]
[312952276,1706520271217,-507.82638632,0.00041095,31]
[312952277,1706520271242,-500.0,0.00041095,31]
[312952278,1706520271265,-500.0,0.00041095,31]
[312952279,1706520271289,-503.44691348,0.00041095,31]
[312952280,1706520271312,-562.54701498,0.00041095,31]
[312952281,1706520271336,-500.0,0.00041095,31]
[312952282,1706520271358,-500.11251906,0.00041095,31]
[312952283,1706520271381,-242.45633526,0.00041095,31]
[312952284,1706520271405,-500.0,0.00041095,31]
[312952285,1706520271430,-500.0,0.00041095,31]
[312952286,1706520271453,-228.51990788,0.00041095,31]
[312952287,1706520271475,-500.0,0.00041095,31]
[312952288,1706520271498,-442.6023281,0.00041095,31]
[312952289,1706520271521,-500.0,0.00041095,31]